lending/lending_fUSD_20240411
["ID","MTS","AMOUNT","RATE_DAILY","PERIOD"]
[322180050,1712865046448,-821.78370401,0.00027293,2]
[322180051,1712865046458,-922.7449738,0.00027393,4]
[322180052,1712865046469,-146.31049319,0.00027393,4]
[322180053,1712865046480,-1972.71950681,0.00027393,4]
[322180054,1712865046490,-1037.33024319,0.00027393,4]
[322180055,1712865046517,-353.24456105,0.00027393,4]
[322180056,1712865046532,-728.45519576,0.00027393,4]
[322180057,1712865046542,-913.39933415,0.00027393,4]
[322180058,1712865046663,-298.93952635,0.00027393,4]
[322180060,1712865077396,219.89,0.00027175,120]
[322180065,1712865179784,331.81241901,0.00023116,7]
[322180066,1712865184573,150.5,0.0002099,15]
[322180067,1712865185034,150.5,0.0002098,15]
[322180068,1712865185534,150.5,0.0002097,15]
[322180074,1712865247086,3885.18235884,0.00033847,30]
[322180075,1712865256634,999.999999,0.0002,2]
[322180080,1712865303250,150.5,0.0002099,15]
[322180081,1712865303439,150.5,0.0002099,15]
[322180082,1712865303724,150.5,0.0002098,15]
[322180083,1712865303957,150.5,0.0002098,15]
[322180084,1712865304202,150.5,0.0002097,15]
[322180085,1712865304441,215.0,0.0002097,15]
[322180086,1712865304490,150.5,0.0002099,15]
[322180087,1712865305032,150.5,0.0002098,15]
[322180088,1712865305519,150.5,0.0002097,15]
[322180091,1712865333434,-325.09234905,0.0002051,2]
[322180092,1712865333463,-1500.0,0.0002051,2]
[322180093,1712865333491,-4514.53178829,0.00020511,2]
[322180094,1712865333519,-155.32138146,0.000208,2]
[322180095,1712865333548,-2010.36919615,0.000209,2]
[322180096,1712865333575,-833.77774472,0.000209,2]
[322180097,1712865333603,-320.96907587,0.000209,2]
[322180098,1712865333630,-4674.72383812,0.000209,2]
[322180099,1712865333656,-265.44993521,0.000209,3]
[322180100,1712865333682,-214.15742684,0.00020998,2]
[322180101,1712865333707,-206.14823361,0.00020998,2]
[322180102,1712865333733,-18962.18286092,0.00020998,2]
[322180103,1712865333758,-303.00000094,0.00020999,2]
[322180104,1712865333785,-487.35149152,0.00020999,2]
[322180105,1712865333813,-3008457.2022267,0.00021,2]
[322180460,1712866194198,2536.05140735,0.0001575,2]
[322180462,1712866224122,2536.83248559,0.00012,2]
[322180463,1712866224624,941.51185046,0.0001575,2]
[322180464,1712866226683,1372.10854233,0.0001575,2]
[322180465,1712866227033,1469.20927421,0.0001575,2]
[322180466,1712866227493,407.81986227,0.0001575,2]
[322180467,1712866230717,323.17938632,0.0001575,2]
[322180473,1712866231518,-325.09234905,0.00020999,2]
[322180474,1712866231528,-33900.6153227,0.00021,2]
[322180475,1712866231538,-179.32336699,0.00023511,2]
[322180476,1712866231548,-852.85,0.00023611,2]
[322180477,1712866231559,-202.30351054,0.00024655,2]
[322180478,1712866231570,-331.62835527,0.00024655,2]
[322180479,1712866231582,-266.84805779,0.00024655,2]
[322180480,1712866231592,-163.90456027,0.00024656,2]
[322180481,1712866231606,-163.24,0.0002529,2]
[322180482,1712866231618,-3408.1,0.00025304,2]
[322180483,1712866231628,-250.0,0.00025423,2]
[322180484,1712866231640,-4221.20456987,0.00025477,2]
[322180485,1712866231651,-2488.96138356,0.0002549,2]
[322180486,1712866231661,-667.63,0.00025516,2]
[322180487,1712866231673,-200.0,0.00025529,2]
[322180488,1712866231684,-231.58,0.00025529,2]
[322180489,1712866231695,-500.0,0.00025529,2]
[322180490,1712866231705,-250.0,0.00025529,2]
[322180491,1712866231716,-150.0,0.00025577,2]
[322180492,1712866231727,-365.96,0.00025577,2]
[322180493,1712866231739,-2763.18,0.00025577,5]
[322180494,1712866231750,-1000.0,0.0002559,2]
[322180495,1712866231761,-9747.76,0.00025607,2]
[322180496,1712866231774,-1074.04,0.0002563,2]
[322180497,1712866231787,-155.26,0.00025668,2]
[322180498,1712866231798,-630.19,0.00025747,2]
[322180499,1712866231808,-179.203377,0.00025753,2]
[322180500,1712866231819,-852.85,0.00025875,2]
[322180501,1712866231834,-4221.20456987,0.00026014,2]
[322180502,1712866231845,-2488.96138351,0.00026026,2]
[322180504,1712866231856,-157.041205,0.00026078,4]
[322180506,1712866231866,-157.041205,0.00026098,5]
[322180508,1712866231879,-157.041205,0.00026178,5]
[322180510,1712866231891,-157.041205,0.00026198,4]
[322180512,1712866231900,-157.041205,0.00026278,4]
[322180514,1712866231911,-157.041205,0.00026298,5]
[322180517,1712866231922,-157.041205,0.00026378,5]
[322180519,1712866231934,-157.041205,0.00026398,4]
[322180521,1712866231944,-157.041205,0.00026478,4]
[322180522,1712866231955,-157.041205,0.00026498,5]
[322180525,1712866231965,-4221.20456987,0.00026551,2]
[322180526,1712866231977,-2488.96138351,0.00026561,2]
[322180529,1712866231988,-179.203377,0.00026575,2]
[322180531,1712866231999,-157.041205,0.00026578,5]
[322180533,1712866232010,-157.041205,0.00026598,4]
[322180535,1712866232020,-157.041205,0.00026678,4]
[322180537,1712866232029,-157.041205,0.00026698,5]
[322180539,1712866232039,-157.041205,0.00026778,5]
[322180541,1712866232049,-157.041205,0.00026798,4]
[322180543,1712866232058,-157.041205,0.00026878,4]
[322180545,1712866232068,-157.041205,0.00026898,5]
[322180547,1712866232081,-1506.89806601,0.00026898,2]
[322180549,1712866232090,-157.041205,0.00026978,5]
[322180551,1712866232100,-157.041205,0.00026998,4]
[322180553,1712866232109,-157.041205,0.00027078,4]
[322180555,1712866232119,-4221.20456987,0.00027088,2]
[322180557,1712866232129,-2488.96138351,0.00027097,2]
[322180559,1712866232139,-157.041205,0.00027098,5]
[322180562,1712866232149,-2209.24532718,0.00027175,2]
[322180564,1712866232158,-1024.67360337,0.00027175,14]
[322180566,1712866232168,-157.041205,0.00027178,5]
[322180568,1712866232177,-157.041205,0.00027191,6]
[322180570,1712866232187,-157.041205,0.00027198,4]
[322180572,1712866232196,-57617.55240977,0.00027267,2]
[322180584,1712866232311,-1385.59730812,0.00027267,2]
[322180588,1712866232334,-4230.81677498,0.00027267,2]
[322180589,1712866232376,-2890.27880013,0.00027267,2]
[322180590,1712866232389,-634.4443087,0.00027267,2]
[322180597,1712866232502,-1434.40762737,0.00027267,2]
[322180599,1712866232515,-934.35503418,0.00027267,2]
[322180601,1712866232531,-6195.86256777,0.00027267,2]
[322180695,1712866237446,-24676.68516898,0.00027267,2]
[322180696,1712866237455,-157.041205,0.00027291,5]
[322180697,1712866237465,-425.43417062,0.00027297,2]
[322180698,1712866237475,-153.92527758,0.00027297,2]
[322180699,1712866237484,-178.31418455,0.00027297,2]
[322180700,1712866237492,-320.86599932,0.00027297,2]
[322180701,1712866237501,-3129.28576094,0.00027297,2]
[322180702,1712866237510,-157.041205,0.00027298,5]
[322180703,1712866237519,-1506.89806601,0.00027353,2]
[322180704,1712866237528,-150.5,0.00027367,15]
[322180705,1712866237537,-150.5,0.00027367,15]
[322180706,1712866237546,-161.0,0.00027367,15]
[322180707,1712866237556,-150.5,0.00027377,15]
[322180708,1712866237565,-161.0,0.00027377,15]
[322180709,1712866237574,-184.47767592,0.00027386,2]
[322180710,1712866237583,-184.47767592,0.00027387,2]
[322180711,1712866237594,-150.5,0.00027387,15]
[322180712,1712866237603,-161.0,0.00027387,15]
[322180713,1712866237612,-157.041205,0.00027391,6]
[322180714,1712866237621,-15877.80173963,0.00027392,2]
[322180715,1712866237631,-4040.22287189,0.00027392,2]
[322180716,1712866237639,-4448.55,0.00027395,4]
[322180717,1712866237649,-4448.55,0.00027395,4]
[322180718,1712866237657,-4448.55,0.00027395,4]
[322180719,1712866237666,-4448.55,0.00027395,4]
[322180720,1712866237676,-4448.55,0.00027395,4]
[322180721,1712866237685,-4448.55,0.00027395,4]
[322180722,1712866237694,-4448.55,0.00027395,4]
[322180723,1712866237703,-4448.55,0.00027395,4]
[322180724,1712866237713,-4448.55,0.00027395,4]
[322180725,1712866237722,-4448.55,0.00027395,4]
[322180726,1712866237731,-4448.55,0.00027395,4]
[322180727,1712866237740,-4448.55,0.00027395,4]
[322180728,1712866237749,-4448.55,0.00027395,4]
[322180729,1712866237759,-4448.55,0.00027395,4]
[322180730,1712866237768,-4448.55,0.00027395,4]
[322180731,1712866237778,-4448.55,0.00027395,4]
[322180732,1712866237786,-4448.55,0.00027395,4]
[322180733,1712866237795,-4448.55,0.00027395,4]
[322180734,1712866237805,-4448.55,0.00027395,4]
[322180735,1712866237814,-4448.55,0.00027395,4]
[322180736,1712866237825,-4448.55,0.00027395,4]
[322180738,1712866237834,-4448.55,0.00027395,4]
[322180740,1712866237843,-4448.55,0.00027395,4]
[322180742,1712866237852,-4448.72142494,0.00027395,4]
[322180744,1712866237861,-708618.07203242,0.00027396,2]
[322180746,1712866237869,-308.08591325,0.00027397,2]
[322180748,1712866237878,-500.0,0.00027397,2]
[322180751,1712866237888,-500.0,0.00027397,2]
[322180754,1712866237898,-500.0,0.00027397,2]
[322180756,1712866237907,-500.0,0.00027397,2]
[322180758,1712866237915,-500.0,0.00027397,2]
[322180760,1712866237924,-500.0,0.00027397,2]
[322180762,1712866237933,-500.0,0.00027397,2]
[322180764,1712866237942,-215.99189234,0.00027397,2]
[322180766,1712866237951,-500.0,0.00027397,2]
[322180768,1712866237960,-500.0,0.00027397,2]
[322180770,1712866237969,-500.0,0.00027397,2]
[322180772,1712866237978,-500.0,0.00027397,2]
[322180773,1712866237987,-507.73392188,0.00027397,2]
[322180774,1712866237996,-500.0,0.00027397,2]
[322180775,1712866238005,-240.04331075,0.00027397,2]
[322180776,1712866238014,-500.0,0.00027397,2]
[322180777,1712866238023,-500.0,0.00027397,2]
[322180778,1712866238032,-500.0,0.00027397,2]
[322180779,1712866238042,-500.0,0.00027397,2]
[322180780,1712866238051,-297.0101391,0.00027397,2]
[322180781,1712866238060,-500.5751319,0.00027397,2]
[322180782,1712866238069,-500.0,0.00027397,2]
[322180783,1712866238079,-500.0,0.00027397,2]
[322180784,1712866238089,-500.0,0.00027397,2]
[322180785,1712866238098,-574.16885424,0.00027397,2]
[322180786,1712866238108,-500.0,0.00027397,2]
[322180787,1712866238117,-500.0,0.00027397,2]
[322180788,1712866238127,-500.0,0.00027397,2]
[322180789,1712866238136,-500.0,0.00027397,2]
[322180790,1712866238145,-500.0,0.00027397,2]
[322180791,1712866238154,-269.06827834,0.00027397,2]
[322180792,1712866238164,-500.0,0.00027397,2]
[322180793,1712866238172,-500.0,0.00027397,2]
[322180794,1712866238182,-637.88600504,0.00027397,2]
[322180795,1712866238191,-500.0,0.00027397,2]
[322180796,1712866238201,-503.57936717,0.00027397,2]
[322180798,1712866238210,-500.0,0.00027397,2]
[322180801,1712866238223,-500.0,0.00027397,2]
[322180802,1712866238233,-500.0,0.00027397,2]
[322180804,1712866238242,-568.24,0.00027397,2]
[322180805,1712866238251,-500.0,0.00027397,2]
[322180806,1712866238261,-315.88096224,0.00027397,2]
[322180807,1712866238270,-645.87,0.00027397,2]
[322180808,1712866238279,-327.33268508,0.00027397,2]
[322180809,1712866238289,-500.0,0.00027397,2]
[322180810,1712866238298,-574.21564177,0.00027397,2]
[322180811,1712866238309,-500.0,0.00027397,2]
[322180812,1712866238319,-500.0,0.00027397,2]
[322180813,1712866238328,-500.0,0.00027397,2]
[322180814,1712866238337,-500.0,0.00027397,2]
[322180816,1712866238346,-500.0,0.00027397,2]
[322180818,1712866238356,-500.0,0.00027397,2]
[322180820,1712866238365,-500.0,0.00027397,2]
[322180822,1712866238375,-939.6,0.00027397,2]
[322180824,1712866238384,-500.0,0.00027397,2]
[322180826,1712866238393,-500.0,0.00027397,2]
[322180828,1712866238402,-500.0,0.00027397,2]
[322180830,1712866238413,-445.25748969,0.00027397,2]
[322180832,1712866238422,-500.0,0.00027397,2]
[322180834,1712866238431,-500.0,0.00027397,2]
[322180836,1712866238440,-500.0,0.00027397,2]
[322180838,1712866238450,-500.0,0.00027397,2]
[322180840,1712866238458,-500.0,0.00027397,2]
[322180842,1712866238468,-500.0,0.00027397,2]
[322180844,1712866238477,-500.0,0.00027397,2]
[322180846,1712866238486,-534.94577928,0.00027397,2]
[322180848,1712866238495,-500.0,0.00027397,2]
[322180850,1712866238504,-500.0,0.00027397,2]
[322180852,1712866238513,-500.0,0.00027397,2]
[322180854,1712866238522,-500.0,0.00027397,2]
[322180856,1712866238531,-500.0,0.00027397,2]
[322180858,1712866238540,-500.0,0.00027397,2]
[322180860,1712866238550,-500.0,0.00027397,2]
[322180862,1712866238559,-500.0,0.00027397,2]
[322180864,1712866238568,-500.0,0.00027397,2]
[322180866,1712866238577,-524.12,0.00027397,2]
[322180868,1712866238586,-500.0,0.00027397,2]
[322180870,1712866238595,-500.0,0.00027397,2]
[322180872,1712866238604,-500.0,0.00027397,2]
[322180874,1712866238613,-500.0,0.00027397,2]
[322180876,1712866238623,-500.0,0.00027397,2]
[322180877,1712866238633,-652.26,0.00027397,2]
[322180879,1712866238643,-500.0,0.00027397,2]
[322180882,1712866238653,-500.0,0.00027397,2]
[322180883,1712866238663,-500.0,0.00027397,2]
[322180885,1712866238673,-500.0,0.00027397,2]
[322180887,1712866238682,-676.28,0.00027397,2]
[322180889,1712866238691,-500.0,0.00027397,2]
[322180892,1712866238701,-500.0,0.00027397,2]
[322180893,1712866238710,-500.0,0.00027397,2]
[322180896,1712866238719,-500.0,0.00027397,2]
[322180897,1712866238729,-582.53,0.00027397,2]
[322180900,1712866238738,-500.0,0.00027397,2]
[322180902,1712866238747,-500.0,0.00027397,2]
[322180903,1712866238756,-500.0,0.00027397,2]
[322180905,1712866238765,-500.0,0.00027397,2]
[322180907,1712866238774,-500.0,0.00027397,2]
[322180909,1712866238783,-507.18425562,0.00027397,2]
[322180911,1712866238792,-501.65533072,0.00027397,2]
[322180913,1712866238801,-595.04,0.00027397,2]
[322180915,1712866238810,-500.0,0.00027397,2]
[322180917,1712866238819,-500.0,0.00027397,2]
[322180919,1712866238829,-500.0,0.00027397,2]
[322180921,1712866238839,-500.0,0.00027397,2]
[322180923,1712866238848,-500.0,0.00027397,2]
[322180925,1712866238857,-500.0,0.00027397,2]
[322180927,1712866238869,-500.0,0.00027397,2]
[322180929,1712866238883,-500.0,0.00027397,2]
[322180931,1712866238892,-500.0,0.00027397,2]
[322180933,1712866238901,-508.43944857,0.00027397,2]
[322180935,1712866238911,-500.0,0.00027397,2]
[322180937,1712866238920,-515.68,0.00027397,2]
[322180939,1712866238929,-500.0,0.00027397,2]
[322180941,1712866238938,-342.91548874,0.00027397,2]
[322180943,1712866238947,-500.0,0.00027397,2]
[322180945,1712866238957,-500.0,0.00027397,2]
[322180947,1712866238967,-500.0,0.00027397,2]
[322180949,1712866238976,-500.0,0.00027397,2]
[322180951,1712866238986,-500.0,0.00027397,2]
[322180953,1712866238996,-500.0,0.00027397,2]
[322180955,1712866239005,-500.0,0.00027397,2]
[322180957,1712866239014,-718.76,0.00027397,2]
[322180959,1712866239024,-500.0,0.00027397,2]
[322180961,1712866239034,-500.0,0.00027397,2]
[322180963,1712866239044,-523.31024304,0.00027397,2]
[322180965,1712866239053,-500.0,0.00027397,2]
[322180967,1712866239062,-500.0,0.00027397,2]
[322180969,1712866239071,-505.62,0.00027397,2]
[322180971,1712866239081,-947.34,0.00027397,2]
[322180973,1712866239090,-500.0,0.00027397,2]
[322180975,1712866239100,-500.0,0.00027397,2]
[322180977,1712866239109,-500.0,0.00027397,2]
[322180980,1712866239119,-500.0,0.00027397,2]
[322180981,1712866239128,-500.0,0.00027397,2]
[322180983,1712866239138,-500.0,0.00027397,2]
[322180985,1712866239147,-500.0,0.00027397,2]
[322180987,1712866239156,-500.0,0.00027397,2]
[322180989,1712866239165,-500.0,0.00027397,2]
[322180992,1712866239175,-500.0,0.00027397,2]
[322180994,1712866239185,-500.0,0.00027397,2]
[322180996,1712866239194,-500.0,0.00027397,2]
[322180998,1712866239203,-500.0,0.00027397,2]
[322180999,1712866239213,-500.0,0.00027397,2]
[322181001,1712866239221,-500.0,0.00027397,2]
[322181003,1712866239230,-500.0,0.00027397,2]
[322181005,1712866239240,-241.9607385,0.00027397,2]
[322181007,1712866239249,-786.91,0.00027397,2]
[322181009,1712866239259,-500.0,0.00027397,2]
[322181011,1712866239269,-500.0,0.00027397,2]
[322181013,1712866239278,-500.0,0.00027397,2]
[322181015,1712866239287,-509.29711326,0.00027397,2]
[322181017,1712866239296,-500.0,0.00027397,2]
[322181019,1712866239307,-500.0,0.00027397,2]
[322181022,1712866239318,-552.74,0.00027397,2]
[322181023,1712866239327,-500.0,0.00027397,2]
[322181025,1712866239336,-500.0,0.00027397,2]
[322181027,1712866239345,-500.0,0.00027397,2]
[322181029,1712866239355,-517.51391627,0.00027397,2]
[322181031,1712866239365,-546.67,0.00027397,2]
[322181033,1712866239374,-519.24,0.00027397,2]
[322181037,1712866239384,-500.0,0.00027397,2]
[322181040,1712866239394,-500.0,0.00027397,2]
[322181043,1712866239405,-500.0,0.00027397,2]
[322181046,1712866239414,-500.0,0.00027397,2]
[322181048,1712866239423,-500.0,0.00027397,2]
[322181052,1712866239433,-500.0,0.00027397,2]
[322181054,1712866239442,-500.0,0.00027397,2]
[322181057,1712866239451,-1049.31,0.00027397,2]
[322181060,1712866239460,-500.0,0.00027397,2]
[322181061,1712866239470,-849.21,0.00027397,2]
[322181064,1712866239479,-500.0,0.00027397,2]
[322181067,1712866239488,-719.23,0.00027397,2]
[322181070,1712866239497,-500.0,0.00027397,2]
[322181073,1712866239507,-500.0,0.00027397,2]
[322181075,1712866239517,-500.0,0.00027397,2]
[322181078,1712866239526,-500.0,0.00027397,2]
[322181081,1712866239537,-579.3,0.00027397,2]
[322181084,1712866239546,-500.0,0.00027397,2]
[322181087,1712866239555,-500.0,0.00027397,2]
[322181089,1712866239565,-500.0,0.00027397,2]
[322181092,1712866239574,-500.0,0.00027397,2]
[322181095,1712866239584,-500.0,0.00027397,2]
[322181097,1712866239594,-500.0,0.00027397,2]
[322181100,1712866239603,-500.0,0.00027397,2]
[322181103,1712866239614,-500.0,0.00027397,2]
[322181105,1712866239623,-554.93,0.00027397,2]
[322181107,1712866239632,-500.0,0.00027397,2]
[322181110,1712866239642,-500.0,0.00027397,2]
[322181114,1712866239652,-727.72,0.00027397,2]
[322181115,1712866239661,-500.0,0.00027397,2]
[322181118,1712866239670,-500.0,0.00027397,2]
[322181120,1712866239679,-500.0,0.00027397,2]
[322181123,1712866239688,-500.0,0.00027397,2]
[322181126,1712866239697,-500.0,0.00027397,2]
[322181129,1712866239706,-500.0,0.00027397,2]
[322181132,1712866239716,-500.0,0.00027397,2]
[322181134,1712866239726,-538.38,0.00027397,2]
[322181135,1712866239734,-500.0,0.00027397,2]
[322181136,1712866239743,-691.83,0.00027397,2]
[322181137,1712866239752,-500.0,0.00027397,2]
[322181138,1712866239762,-500.0,0.00027397,2]
[322181139,1712866239771,-500.0,0.00027397,2]
[322181140,1712866239780,-500.0,0.00027397,2]
[322181141,1712866239789,-500.0,0.00027397,2]
[322181144,1712866239799,-500.0,0.00027397,2]
[322181146,1712866239808,-500.0,0.00027397,2]
[322181149,1712866239817,-500.0,0.00027397,2]
[322181152,1712866239827,-500.0,0.00027397,2]
[322181155,1712866239836,-500.0,0.00027397,2]
[322181158,1712866239845,-500.0,0.00027397,2]
[322181161,1712866239854,-500.0,0.00027397,2]
[322181164,1712866239863,-500.0,0.00027397,2]
[322181167,1712866239874,-698.24,0.00027397,2]
[322181170,1712866239884,-500.0,0.00027397,2]
[322181173,1712866239893,-500.0,0.00027397,2]
[322181176,1712866239902,-500.0,0.00027397,2]
[322181180,1712866239911,-990.4,0.00027397,2]
[322181183,1712866239920,-500.0,0.00027397,2]
[322181186,1712866239930,-500.0,0.00027397,2]
[322181189,1712866239938,-500.0,0.00027397,2]
[322181191,1712866239947,-500.0,0.00027397,2]
[322181194,1712866239956,-500.0,0.00027397,2]
[322181197,1712866239965,-500.0,0.00027397,2]
[322181199,1712866239974,-500.0,0.00027397,2]
[322181203,1712866239983,-560.31630542,0.00027397,2]
[322181206,1712866239993,-500.0,0.00027397,2]
[322181208,1712866240002,-500.0,0.00027397,2]
[322181212,1712866240011,-500.0,0.00027397,2]
[322181214,1712866240021,-500.0,0.00027397,2]
[322181218,1712866240030,-500.0,0.00027397,2]
[322181221,1712866240040,-500.0,0.00027397,2]
[322181224,1712866240049,-531.39,0.00027397,2]
[322181226,1712866240058,-500.0,0.00027397,2]
[322181229,1712866240068,-500.0,0.00027397,2]
[322181233,1712866240079,-653.99,0.00027397,2]
[322181237,1712866240089,-936.9,0.00027397,2]
[322181240,1712866240099,-500.0,0.00027397,2]
[322181243,1712866240108,-500.0,0.00027397,2]
[322181246,1712866240117,-500.0,0.00027397,2]
[322181248,1712866240127,-500.0,0.00027397,2]
[322181251,1712866240137,-500.0,0.00027397,2]
[322181255,1712866240146,-500.0,0.00027397,2]
[322181258,1712866240156,-500.0,0.00027397,2]
[322181261,1712866240166,-500.0,0.00027397,2]
[322181264,1712866240175,-1367.32,0.00027397,2]
[322181267,1712866240185,-516.57,0.00027397,2]
[322181270,1712866240194,-1193.61,0.00027397,2]
[322181272,1712866240203,-500.0,0.00027397,2]
[322181275,1712866240212,-500.0,0.00027397,2]
[322181278,1712866240221,-500.0,0.00027397,2]
[322181281,1712866240230,-500.0,0.00027397,2]
[322181284,1712866240239,-500.0,0.00027397,2]
[322181287,1712866240248,-500.0,0.00027397,2]
[322181291,1712866240258,-500.0,0.00027397,2]
[322181293,1712866240267,-500.0,0.00027397,2]
[322181297,1712866240277,-1022.91,0.00027397,2]
[322181300,1712866240286,-500.0,0.00027397,2]
[322181303,1712866240295,-1247.04,0.00027397,2]
[322181306,1712866240308,-500.0,0.00027397,2]
[322181309,1712866240318,-500.0,0.00027397,2]
[322181312,1712866240328,-708.51,0.00027397,2]
[322181315,1712866240337,-500.0,0.00027397,2]
[322181318,1712866240346,-668.36,0.00027397,2]
[322181320,1712866240357,-533.93,0.00027397,2]
[322181322,1712866240366,-500.0,0.00027397,2]
[322181324,1712866240375,-500.0,0.00027397,2]
[322181326,1712866240385,-1327.28,0.00027397,2]
[322181328,1712866240393,-500.0,0.00027397,2]
[322181330,1712866240403,-500.0,0.00027397,2]
[322181332,1712866240413,-500.0,0.00027397,2]
[322181334,1712866240422,-703.21,0.00027397,2]
[322181336,1712866240431,-500.0,0.00027397,2]
[322181338,1712866240440,-500.0,0.00027397,2]
[322181339,1712866240449,-500.0,0.00027397,2]
[322181343,1712866240459,-500.0,0.00027397,2]
[322181346,1712866240468,-500.0,0.00027397,2]
[322181349,1712866240478,-500.0,0.00027397,2]
[322181351,1712866240488,-500.0,0.00027397,2]
[322181353,1712866240497,-500.0,0.00027397,2]
[322181355,1712866240507,-500.0,0.00027397,2]
[322181357,1712866240517,-500.0,0.00027397,2]
[322181359,1712866240526,-1199.25,0.00027397,2]
[322181361,1712866240536,-500.0,0.00027397,2]
[322181363,1712866240546,-500.0,0.00027397,2]
[322181365,1712866240555,-500.0,0.00027397,2]
[322181367,1712866240564,-500.0,0.00027397,2]
[322181369,1712866240574,-500.0,0.00027397,2]
[322181371,1712866240584,-500.0,0.00027397,2]
[322181373,1712866240593,-464.25824974,0.00027397,2]
[322181374,1712866240602,-500.0,0.00027397,2]
[322181376,1712866240611,-629.04,0.00027397,2]
[322181378,1712866240620,-500.0,0.00027397,2]
[322181380,1712866240630,-706.9,0.00027397,2]
[322181382,1712866240639,-500.0,0.00027397,2]
[322181384,1712866240648,-598.35,0.00027397,2]
[322181386,1712866240658,-500.0,0.00027397,2]
[322181389,1712866240667,-500.0,0.00027397,2]
[322181390,1712866240677,-500.0,0.00027397,2]
[322181393,1712866240686,-504.85,0.00027397,2]
[322181395,1712866240696,-528.74,0.00027397,2]
[322181397,1712866240705,-500.0,0.00027397,2]
[322181399,1712866240715,-500.0,0.00027397,2]
[322181401,1712866240724,-500.0,0.00027397,2]
[322181403,1712866240734,-500.0,0.00027397,2]
[322181404,1712866240743,-500.0,0.00027397,2]
[322181406,1712866240752,-847.93,0.00027397,2]
[322181409,1712866240762,-500.0,0.00027397,2]
[322181411,1712866240771,-611.42,0.00027397,2]
[322181413,1712866240781,-500.0,0.00027397,2]
[322181415,1712866240790,-1206.16,0.00027397,2]
[322181417,1712866240799,-500.0,0.00027397,2]
[322181419,1712866240809,-500.0,0.00027397,2]
[322181421,1712866240818,-500.0,0.00027397,2]
[322181423,1712866240828,-500.0,0.00027397,2]
[322181425,1712866240838,-802.61,0.00027397,2]
[322181427,1712866240847,-500.0,0.00027397,2]
[322181428,1712866240857,-500.0,0.00027397,2]
[322181431,1712866240866,-500.0,0.00027397,2]
[322181451,1712866241090,-500.0,0.00027397,2]
[322181453,1712866241100,-500.0,0.00027397,2]
[322181455,1712866241109,-500.0,0.00027397,2]
[322181457,1712866241118,-500.0,0.00027397,2]
[322181459,1712866241128,-500.0,0.00027397,2]
[322181460,1712866241138,-500.0,0.00027397,2]
[322181462,1712866241148,-500.0,0.00027397,2]
[322181464,1712866241157,-569.54,0.00027397,2]
[322181466,1712866241168,-500.0,0.00027397,2]
[322181468,1712866241177,-500.0,0.00027397,2]
[322181470,1712866241186,-500.0,0.00027397,2]
[322181472,1712866241196,-507.95009627,0.00027397,2]
[322181474,1712866241205,-589.99,0.00027397,2]
[322181476,1712866241215,-500.0,0.00027397,2]
[322181478,1712866241224,-500.0,0.00027397,2]
[322181480,1712866241233,-500.0,0.00027397,2]
[322181482,1712866241243,-1460.25,0.00027397,2]